fUST/lending_fUST_20241025
["ID","MTS","AMOUNT","RATE_DAILY","PERIOD"]
[340762197,1729787443163,-182.795476,0.0002,2]
[340762198,1729787443173,-182.795482,0.0002,2]
[340762200,1729787443186,-756.990096,0.0002,2]
[340762202,1729787443256,-756.990096,0.0002,2]
[340762204,1729787443415,-756.990096,0.0002,2]
[340762205,1729787443485,-756.990096,0.0002,2]
[340762206,1729787443583,-2832.944913,0.0002,2]
[340762207,1729787443671,-2832.944913,0.0002,2]
[340762208,1729787443776,-2832.944913,0.0002,2]
[340762209,1729787443835,-2832.944921,0.0002,2]
[340762210,1729787443952,-5467.06636437,0.00020041,2]
[340762211,1729787444094,-270.769812,0.00020061,2]
[340762212,1729787444160,-151.0,0.00020061,2]
[340762213,1729787444171,-151.0,0.00020061,2]
[340762214,1729787444182,-999.58189,0.00020061,2]
[340762215,1729787444192,-151.0,0.00020061,2]
[340762216,1729787444202,-999.58189,0.00020061,2]
[340762217,1729787444213,-151.0,0.00020061,2]
[340762218,1729787444223,-194.249384,0.00020061,2]
[340762219,1729787444233,-194.249384,0.00020061,2]
[340762220,1729787444243,-500.0,0.00020075,2]
[340762221,1729787444255,-500.0,0.00020075,2]
[340762222,1729787444265,-500.0,0.00020088,2]
[340762224,1729787444276,-501.03219678,0.00020088,2]
[340762225,1729787444285,-500.0,0.00020088,2]
[340762226,1729787444297,-500.0,0.000201,2]
[340762227,1729787444307,-500.0,0.000201,2]
[340762228,1729787444317,-305.95005174,0.000201,2]
[340762229,1729787444328,-794.688574,0.000201,2]
[340762231,1729787444340,-794.688574,0.000201,2]
[340762232,1729787444350,-151.0,0.000201,2]
[340762234,1729787444359,-237.316022,0.000201,2]
[340762236,1729787444369,-237.316022,0.000201,2]
[340762237,1729787444379,-1358.217049,0.000201,2]
[340762238,1729787444389,-1358.217049,0.000201,2]
[340762239,1729787444399,-500.72025029,0.0002015,2]
[340762240,1729787444408,-203.93629781,0.0002015,2]
[340762241,1729787444418,-16184.9508046,0.00020223,3]
[340762242,1729787444428,-151.0,0.00020233,2]
[340762243,1729787444438,-151.0,0.00020233,2]
[340762244,1729787444448,-151.0,0.00020233,2]
[340762245,1729787444458,-151.0,0.00020233,2]
[340762246,1729787444467,-151.0,0.00020233,2]
[340762247,1729787444477,-151.0,0.00020233,2]
[340762248,1729787444486,-180.84565,0.00020233,2]
[340762249,1729787444495,-395.532861,0.00020233,2]
[340762251,1729787444505,-395.532861,0.00020233,2]
[340762252,1729787444514,-395.532861,0.00020233,2]
[340762253,1729787444523,-395.532861,0.00020233,2]
[340762254,1729787444533,-151.0,0.00020233,2]
[340762255,1729787444542,-151.0,0.00020233,2]
[340762256,1729787444552,-151.0,0.00020233,2]
[340762257,1729787444564,-151.0,0.00020233,2]
[340762258,1729787444574,-794.688574,0.00020233,2]
[340762259,1729787444583,-794.688574,0.00020233,2]
[340762260,1729787444593,-151.0,0.00020233,2]
[340762261,1729787444603,-151.0,0.00020233,2]
[340762262,1729787444614,-151.0,0.00020233,2]
[340762263,1729787444624,-237.316022,0.00020233,2]
[340762264,1729787444634,-237.316022,0.00020233,2]
[340762265,1729787444644,-1358.217049,0.00020233,2]
[340762266,1729787444654,-1358.217049,0.00020233,2]
[340762267,1729787444664,-16184.9508046,0.00020234,3]
[340762268,1729787444675,-402.384951,0.00020244,2]
[340762269,1729787444685,-402.384951,0.00020244,2]
[340762270,1729787444695,-151.0,0.00020244,2]
[340762271,1729787444704,-151.0,0.00020244,2]
[340762272,1729787444714,-151.0,0.00020244,2]
[340762273,1729787444724,-151.0,0.00020244,2]
[340762274,1729787444734,-151.0,0.00020244,2]
[340762275,1729787444744,-999.58189,0.00020244,2]
[340762276,1729787444754,-151.0,0.00020244,2]
[340762277,1729787444763,-999.58189,0.00020244,2]
[340762278,1729787444773,-151.0,0.00020244,2]
[340762279,1729787444783,-194.249384,0.00020244,2]
[340762280,1729787444796,-194.249384,0.00020244,2]
[340762281,1729787444805,-151.0,0.00020244,2]
[340762282,1729787444815,-794.688574,0.00020244,2]
[340762283,1729787444827,-794.688574,0.00020244,2]
[340762284,1729787444837,-151.0,0.00020244,2]
[340762285,1729787444848,-151.0,0.00020244,2]
[340762286,1729787444857,-237.316022,0.00020244,2]
[340762287,1729787444868,-237.316022,0.00020244,2]
[340762288,1729787444880,-1358.217049,0.00020244,2]
[340762289,1729787444889,-1358.217049,0.00020244,2]
[340762290,1729787444900,-1000.0,0.00020247,2]
[340762291,1729787444911,-151.0,0.00020254,2]
[340762292,1729787444922,-151.0,0.00020254,2]
[340762293,1729787444932,-151.0,0.00020254,2]
[340762294,1729787444942,-151.0,0.00020254,2]
[340762295,1729787444952,-151.0,0.00020254,2]
[340762296,1729787444963,-151.0,0.00020254,2]
[340762297,1729787444972,-151.0,0.00020254,2]
[340762298,1729787444983,-151.0,0.00020254,2]
[340762299,1729787444992,-151.0,0.00020254,2]
[340762300,1729787445001,-151.0,0.00020254,2]
[340762301,1729787445010,-151.0,0.00020254,2]
[340762302,1729787445020,-151.0,0.00020254,2]
[340762303,1729787445031,-151.0,0.00020254,2]
[340762304,1729787445040,-999.58189,0.00020254,2]
[340762305,1729787445051,-999.58189,0.00020254,2]
[340762306,1729787445060,-151.0,0.00020254,2]
[340762307,1729787445069,-194.249384,0.00020254,2]
[340762308,1729787445078,-194.249384,0.00020254,2]
[340762309,1729787445088,-151.0,0.00020254,2]
[340762310,1729787445098,-151.0,0.00020254,2]
[340762311,1729787445107,-395.532861,0.00020254,2]
[340762312,1729787445116,-395.532861,0.00020254,2]
[340762313,1729787445126,-151.0,0.00020264,2]
[340762314,1729787445136,-155.74331,0.00020264,2]
[340762315,1729787445146,-151.0,0.00020264,2]
[340762316,1729787445157,-16184.9508046,0.0002034,3]
[340762317,1729787445167,-217.94073373,0.00020349,2]
[340762318,1729787445177,-151.0,0.0002035,2]
[340762319,1729787445187,-198.18402,0.0002035,2]
[340762320,1729787445196,-151.0,0.0002035,2]
[340762321,1729787445205,-395.532861,0.0002035,2]
[340762322,1729787445215,-395.532861,0.0002035,2]
[340762323,1729787445224,-151.0,0.0002035,2]
[340762324,1729787445234,-151.0,0.0002035,2]
[340762325,1729787445244,-794.688574,0.0002035,2]
[340762326,1729787445258,-794.688574,0.0002035,2]
[340762327,1729787445268,-794.688574,0.0002035,2]
[340762328,1729787445278,-794.688568,0.0002035,2]
[340762329,1729787445288,-151.0,0.0002035,2]
[340762330,1729787445301,-151.0,0.0002035,2]
[340762331,1729787445310,-151.0,0.0002035,2]
[340762332,1729787445319,-151.0,0.0002035,2]
[340762333,1729787445331,-237.316022,0.0002035,2]
[340762334,1729787445342,-237.316022,0.0002035,2]
[340762335,1729787445352,-237.316022,0.0002035,2]
[340762336,1729787445363,-237.31602,0.0002035,2]
[340762337,1729787445373,-1358.217049,0.0002035,2]
[340762338,1729787445383,-1358.217049,0.0002035,2]
[340762339,1729787445392,-1358.217049,0.0002035,2]
[340762340,1729787445401,-1358.217047,0.0002035,2]
[340762341,1729787445414,-151.0,0.0002036,2]
[340762342,1729787445424,-151.0,0.0002036,2]
[340762343,1729787445435,-402.384951,0.0002036,2]
[340762344,1729787445618,-402.384951,0.0002036,2]
[340762345,1729787445630,-1000.0,0.00020361,2]
[340762346,1729787445640,-151.0,0.00020526,2]
[340762347,1729787445649,-151.0,0.00020526,2]
[340762348,1729787445659,-151.0,0.00020526,2]
[340762349,1729787445669,-465.00132888,0.0002064,2]
[340762350,1729787445680,-151.0,0.0002064,2]
[340762351,1729787445691,-151.0,0.0002064,2]
[340762352,1729787445702,-151.0,0.0002064,2]
[340762353,1729787445713,-151.0,0.0002064,2]
[340762354,1729787445724,-151.0,0.0002064,2]
[340762355,1729787445734,-999.58189,0.0002064,2]
[340762356,1729787445746,-999.58189,0.0002064,2]
[340762357,1729787445758,-151.0,0.0002064,2]
[340762358,1729787445770,-194.249384,0.0002064,2]
[340762359,1729787445780,-194.249384,0.0002064,2]
[340762360,1729787445791,-151.0,0.0002064,2]
[340762361,1729787445804,-395.532861,0.0002064,2]
[340762362,1729787445814,-395.532861,0.0002064,2]
[340762363,1729787445823,-151.0,0.0002064,2]
[340762364,1729787445834,-151.0,0.0002064,2]
[340762365,1729787445845,-1500.0,0.00020647,2]
[340762366,1729787445857,-1500.0,0.00020762,2]
[340762367,1729787445868,-151.0,0.00021007,2]
[340762368,1729787445880,-2000.0,0.00021115,2]
[340762369,1729787445888,-151.0,0.00021143,2]
[340762370,1729787445897,-151.0,0.00021143,2]
[340762371,1729787445907,-999.58189,0.00021143,2]
[340762372,1729787445917,-999.58189,0.00021143,2]
[340762373,1729787445927,-151.0,0.00021143,2]
[340762374,1729787445937,-194.249384,0.00021143,2]
[340762375,1729787445949,-194.249384,0.00021143,2]
[340762376,1729787445959,-16184.9508046,0.00021208,3]
[340762377,1729787445971,-151.0,0.00021222,2]
[340762378,1729787445983,-395.532861,0.00021222,2]
[340762379,1729787445993,-395.532865,0.00021222,2]
[340762380,1729787446003,-16184.9508046,0.00021223,3]
[340762381,1729787446014,-2000.0,0.0002123,2]
[340762382,1729787446026,-402.384951,0.00021233,2]
[340762384,1729787446037,-402.384951,0.00021233,2]
[340762386,1729787446050,-151.0,0.00021233,2]
[340762387,1729787446071,-151.0,0.00021233,2]
[340762389,1729787446080,-151.0,0.00021233,2]
[340762390,1729787446090,-151.0,0.00021233,2]
[340762391,1729787446099,-199.525201,0.00021233,2]
[340762392,1729787446109,-999.58189,0.00021233,2]
[340762393,1729787446118,-999.58189,0.00021233,2]
[340762395,1729787446127,-151.0,0.00021233,2]
[340762397,1729787446138,-194.249384,0.00021233,2]
[340762399,1729787446148,-194.249384,0.00021233,2]
[340762400,1729787446158,-151.0,0.00021243,2]
[340762401,1729787446169,-999.58189,0.00021243,2]
[340762402,1729787446179,-999.581888,0.00021243,2]
[340762404,1729787446188,-151.0,0.00021243,2]
[340762405,1729787446198,-194.249384,0.00021243,2]
[340762406,1729787446207,-194.249387,0.00021243,2]
[340762408,1729787446217,-587.0,0.00021297,2]
[340762409,1729787446228,-150.112233,0.000213,4]
[340762410,1729787446238,-16184.9508046,0.00021464,3]
[340762411,1729787446247,-402.384951,0.00021474,2]
[340762412,1729787446261,-402.384951,0.00021474,2]
[340762413,1729787446270,-151.0,0.00021474,2]
[340762415,1729787446279,-151.0,0.00021474,2]
[340762416,1729787446288,-151.0,0.00021474,2]
[340762417,1729787446299,-151.0,0.00021478,2]
[340762418,1729787446309,-151.0,0.00021478,2]
[340762419,1729787446319,-151.0,0.00021478,2]
[340762420,1729787446329,-151.0,0.00021478,2]
[340762422,1729787446341,-151.0,0.00021478,2]
[340762424,1729787446351,-151.0,0.00021478,2]
[340762426,1729787446361,-151.0,0.00021478,2]
[340762427,1729787446370,-151.0,0.00021478,2]
[340762428,1729787446380,-151.0,0.00021478,2]
[340762429,1729787446390,-151.0,0.00021487,2]
[340762430,1729787446399,-402.384951,0.00021487,2]
[340762431,1729787446408,-402.384951,0.00021487,2]
[340762432,1729787446418,-151.0,0.00021487,2]
[340762433,1729787446430,-151.0,0.00021487,2]
[340762434,1729787446441,-151.0,0.00021487,2]
[340762435,1729787446453,-151.0,0.00021497,2]
[340762436,1729787446463,-151.0,0.00021497,2]
[340762437,1729787446473,-253.0,0.00021497,2]
[340762438,1729787446483,-151.0,0.00021497,2]
[340762439,1729787446493,-158.733515,0.00021497,2]
[340762440,1729787446503,-151.0,0.00021497,2]
[340762441,1729787446513,-151.0,0.00021497,2]
[340762442,1729787446525,-151.0,0.00021497,2]
[340762443,1729787446534,-151.0,0.00021497,2]
[340762444,1729787446545,-151.0,0.00021497,2]
[340762445,1729787446555,-151.0,0.00021497,2]
[340762446,1729787446565,-151.0,0.00021497,2]
[340762447,1729787446579,-151.0,0.00021497,2]
[340762448,1729787446590,-151.0,0.00021497,2]
[340762449,1729787446600,-402.384951,0.00021497,2]
[340762450,1729787446609,-402.384951,0.00021497,2]
[340762451,1729787446619,-151.0,0.00021497,2]
[340762452,1729787446629,-150.112233,0.000215,3]
[340762453,1729787446638,-89093.41038184,0.000215,2]
[340762454,1729787446869,-33917.07533431,0.000215,2]
[340762455,1729787447334,-193.680419,0.00019599,2]
[340762456,1729787447345,-193.680419,0.0001997,2]
[340762457,1729787447354,-193.680419,0.0001997,2]
[340762458,1729787447365,-159.75184705,0.00019973,2]
[340762459,1729787447376,-193.680419,0.00019978,2]
[340762460,1729787447386,-60131.09233284,0.000215,2]
[340762461,1729787447398,-3374.5,0.000215,2]
[340762462,1729787447755,-151.0,0.00019599,2]
[340762463,1729787447765,-193.680419,0.00019599,2]
[340762464,1729787447779,-151.0,0.0001997,2]
[340762465,1729787447790,-151.0,0.0001997,2]
[340762466,1729787447800,-193.680419,0.0001997,2]
[340762467,1729787447809,-193.680419,0.0001997,2]
[340762468,1729787447819,-500.0,0.00019973,2]
[340762469,1729787447829,-193.680419,0.00019978,2]
[340762470,1729787447840,-193.680419,0.00019978,2]
[340762471,1729787447849,-193.680419,0.00019978,2]
[340762472,1729787447859,-193.680419,0.00019978,2]
[340762473,1729787447868,-193.680419,0.00019978,2]
[340762474,1729787447878,-193.680419,0.00019978,2]
[340762475,1729787447887,-72353.93132312,0.000215,2]
[340762476,1729787447899,-31582.46525265,0.000215,2]
[340762481,1729787703130,487.4129664,0.00016,2]
[340762520,1729787844703,181.649359,0.00013973,2]
[340762581,1729788638772,-24900.0,0.00017181,2]
[340762582,1729788638783,-300.0,0.00017549,2]
[340762583,1729788638794,-300.0,0.00017549,2]
[340762584,1729788638803,-11156.200094,0.0001755,2]
[340762585,1729788638814,-4918.34715593,0.00018135,2]
[340762586,1729788638824,-3126.079137,0.00018165,2]
[340762588,1729788638834,-416.86955911,0.00018188,2]
[340762590,1729788638844,-49344.6808762,0.00018188,2]
[340762593,1729788638856,-11156.200094,0.00018234,2]
[340762595,1729788638867,-454.7,0.00018702,3]
[340762597,1729788638876,-500.0,0.00018711,2]
[340762599,1729788638886,-268.32834543,0.00018711,2]
[340762601,1729788638898,-500.0,0.00018711,2]
[340762603,1729788638908,-500.0,0.00018711,2]
[340762605,1729788638917,-500.0,0.00018711,2]
[340762607,1729788638927,-500.0,0.00018711,2]
[340762609,1729788638937,-500.0,0.00018711,2]
[340762611,1729788638946,-500.0,0.00018711,2]
[340762613,1729788638955,-500.0,0.00018711,2]
[340762615,1729788638965,-500.0,0.00018711,2]
[340762617,1729788638975,-500.0,0.00018711,2]
[340762619,1729788638985,-500.0,0.00018711,2]
[340762622,1729788638995,-343.40876268,0.00018711,2]
[340762624,1729788639005,-500.0,0.00018711,2]
[340762626,1729788639014,-500.0,0.00018711,2]
[340762628,1729788639023,-629.26326548,0.00018711,2]
[340762630,1729788639035,-500.0,0.00018711,2]
[340762632,1729788639045,-500.0,0.00018711,2]
[340762634,1729788639054,-500.0,0.00018711,2]
[340762636,1729788639064,-500.0,0.00018711,2]
[340762638,1729788639073,-500.0,0.00018711,2]
[340762640,1729788639083,-500.0,0.00018711,2]
[340762642,1729788639094,-500.0,0.00018711,2]
[340762644,1729788639105,-500.0,0.00018711,2]
[340762646,1729788639116,-500.0,0.00018711,2]
[340762648,1729788639126,-500.0,0.00018711,2]
[340762650,1729788639136,-500.0,0.00018711,2]
[340762652,1729788639146,-427.02204974,0.00018711,2]
[340762654,1729788639155,-500.0,0.00018711,2]
[340762656,1729788639164,-500.0,0.00018711,2]
[340762658,1729788639173,-500.0,0.00018711,2]
[340762660,1729788639182,-500.0,0.00018711,2]
[340762662,1729788639191,-500.0,0.00018711,2]
[340762664,1729788639200,-500.0,0.00018711,2]
[340762666,1729788639209,-500.0,0.00018711,2]
[340762668,1729788639219,-500.0,0.00018711,2]
[340762670,1729788639228,-500.0,0.00018711,2]
[340762672,1729788639237,-500.0,0.00018711,2]
[340762674,1729788639246,-500.0,0.00018711,2]
[340762677,1729788639256,-500.0,0.00018711,2]
[340762679,1729788639265,-500.0,0.00018711,2]
[340762681,1729788639275,-500.0,0.00018711,2]
[340762683,1729788639285,-500.0,0.00018711,2]
[340762685,1729788639295,-223.57919064,0.00018711,2]
[340762687,1729788639308,-276.42080936,0.00018711,2]
[340762689,1729788639319,-209.98315674,0.00018711,2]
[340762695,1729788639364,-290.01684326,0.00018711,2]
[340762697,1729788639374,-500.0,0.00018711,2]
[340762700,1729788639385,-500.0,0.00018711,2]
[340762702,1729788639394,-500.0,0.00018711,2]
[340762704,1729788639404,-500.0,0.00018711,2]
[340762706,1729788639414,-500.0,0.00018711,2]
[340762708,1729788639424,-150.4934352,0.00018711,2]
[340762710,1729788639438,-349.5065648,0.00018711,2]
[340762712,1729788639450,-500.0,0.00018711,2]
[340762715,1729788639461,-500.0,0.00018711,2]
[340762717,1729788639473,-24.2934352,0.00018711,2]
[340762720,1729788639491,-475.7065648,0.00018711,2]
[340762722,1729788639501,-500.0,0.00018711,2]
[340762724,1729788639512,-500.0,0.00018711,2]
[340762727,1729788639523,-500.0,0.00018711,2]
[340762729,1729788639533,-500.0,0.00018711,2]
[340762731,1729788639544,-500.0,0.00018711,2]
[340762733,1729788639553,-500.0,0.00018711,2]
[340762735,1729788639562,-500.0,0.00018711,2]
[340762737,1729788639573,-500.0,0.00018711,2]
[340762739,1729788639582,-500.0,0.00018711,2]
[340762741,1729788639593,-500.0,0.00018711,2]
[340762743,1729788639604,-500.0,0.00018711,2]
[340762745,1729788639614,-500.0,0.00018711,2]
[340762747,1729788639624,-241.43067559,0.00018711,2]
[340762749,1729788639634,-500.0,0.00018711,2]
[340762752,1729788639643,-500.0,0.00018711,2]
[340762754,1729788639653,-500.0,0.00018711,2]
[340762756,1729788639662,-500.0,0.00018711,2]
[340762758,1729788639672,-500.0,0.00018711,2]
[340762760,1729788639683,-500.0,0.00018711,2]
[340762762,1729788639695,-500.0,0.00018711,2]
[340762764,1729788639705,-500.0,0.00018711,2]
[340762766,1729788639715,-500.0,0.00018711,2]
[340762768,1729788639724,-500.0,0.00018711,2]
[340762770,1729788639736,-500.0,0.00018711,2]
[340762773,1729788639747,-14760.5819346,0.00018712,2]
[340762775,1729788639758,-54110.1435774,0.00018712,2]
[340762777,1729788639767,-187.95618699,0.0001872,2]
[340762779,1729788639777,-285.07258783,0.0001872,2]
[340762781,1729788639786,-500.0,0.0001872,2]
[340762783,1729788639795,-196.89768981,0.0001872,2]
[340762785,1729788639805,-326.43669862,0.0001872,2]
[340762787,1729788639814,-344.93435112,0.0001872,2]
[340762789,1729788639823,-11156.200094,0.00018919,2]
[340762791,1729788639833,-424.46158584,0.000191,2]
[340762793,1729788639844,-424.46158584,0.000191,2]
[340762795,1729788639855,-424.46158584,0.00019138,2]
[340762797,1729788639865,-420.0,0.00019156,2]
[340762799,1729788639874,-447.130494,0.00019178,4]
[340762801,1729788639885,-420.0,0.00019303,2]
[340762803,1729788639894,-595.19761577,0.00019473,2]
[340762805,1729788639904,-522.86573936,0.00019473,2]
[340762807,1729788639915,-500.0,0.00019473,2]
[340762809,1729788639925,-500.0,0.00019473,2]
[340762812,1729788639935,-500.0,0.00019473,2]
[340762814,1729788639944,-500.0,0.00019473,2]
[340762816,1729788639954,-301.12184329,0.0001955,2]
[340762818,1729788639965,-500.0,0.0001955,2]
[340762820,1729788639974,-1000.0,0.00019747,2]
[340762822,1729788639983,-502.80957543,0.00019824,2]
[340762824,1729788639993,-500.0,0.00020033,2]
[340762826,1729788640003,-159.75184705,0.00020033,2]
[340762828,1729788640013,-500.0,0.00020033,2]
[340762830,1729788640023,-500.0,0.00020033,2]
[340762832,1729788640034,-500.0,0.00020033,2]
[340762834,1729788640044,-4918.34715592,0.00020109,2]
[340762837,1729788640054,-1500.0,0.00020147,2]
[340762839,1729788640064,-500.0,0.0002018,2]
[340762841,1729788640074,-500.14502767,0.0002018,2]
[340762843,1729788640084,-380.02666482,0.0002018,2]
[340762845,1729788640094,-500.0,0.0002018,2]
[340762847,1729788640103,-500.0,0.00020213,2]
[340762849,1729788640112,-709.97887489,0.00020307,2]
[340762851,1729788640122,-1000.0,0.00020307,2]
[340762853,1729788640131,-538.75045776,0.00020307,2]
[340762855,1729788640140,-1000.0,0.00020307,2]
[340762857,1729788640150,-212.0,0.0002034,2]
[340762859,1729788640159,-54110.1435774,0.00020358,3]
[340762861,1729788640169,-151.0,0.00020358,2]
[340762863,1729788640178,-188.431189,0.00020358,2]
[340762865,1729788640188,-188.431189,0.00020358,2]
[340762867,1729788640197,-151.0,0.00020358,2]
[340762869,1729788640206,-54110.1435774,0.0002036,3]
[340762871,1729788640215,-151.0,0.0002036,2]
[340762873,1729788640224,-188.431189,0.0002036,2]
[340762875,1729788640233,-188.431189,0.0002036,2]
[340762877,1729788640243,-54110.1435774,0.0002036,3]
[340762879,1729788640252,-44281.7458038,0.00020368,3]
[340762881,1729788640262,-68120.73147882,0.00020368,3]
[340762885,1729788640277,-40099.55567618,0.00020368,3]
[340762887,1729788640286,-151.0,0.00020368,2]
[340762891,1729788640295,-188.431189,0.00020368,2]
[340762892,1729788640305,-188.431189,0.00020368,2]
[340762894,1729788640314,-42918.01944826,0.0002037,3]
[340762897,1729788640328,-1363.72635554,0.0002037,3]
[340762900,1729788640337,-88.94039645,0.0002037,3]
[340762989,1729788640783,-429.85572955,0.0001955,2]
[340762991,1729788640792,-151.0,0.0002036,2]
[340762994,1729788640802,-151.0,0.00020368,2]
[340762998,1729788640812,-1818.16427045,0.0002037,3]
[340763002,1729788640827,-12853.4772677,0.0002037,3]
[340763005,1729788640839,-14760.5819346,0.00020371,3]
[340763008,1729788640848,-14760.5819346,0.00020372,3]
[340763011,1729788640857,-151.0,0.00020372,2]
[340763014,1729788640866,-188.431189,0.00020372,2]
[340763017,1729788640876,-188.431189,0.00020372,2]
[340763020,1729788640886,-151.0,0.00020372,2]
[340763023,1729788640895,-500.0,0.00020373,2]
[340763026,1729788640904,-500.0,0.00020373,2]
[340763029,1729788640914,-5000.0,0.0002038,2]
[340763032,1729788640923,-1474.681552,0.0002038,2]
[340763035,1729788640933,-151.0,0.0002038,2]
[340763037,1729788640943,-151.0,0.0002038,2]
[340763039,1729788640952,-151.0,0.0002038,2]
[340763041,1729788640962,-151.0,0.0002038,2]
[340763043,1729788640970,-151.0,0.0002038,2]
[340763045,1729788640980,-151.0,0.0002038,2]
[340763046,1729788640991,-151.0,0.0002038,2]
[340763048,1729788641001,-151.0,0.0002038,2]
[340763050,1729788641010,-151.0,0.0002038,2]
[340763051,1729788641018,-273.52331,0.0002038,2]
[340763053,1729788641028,-303.267956,0.0002038,2]
[340763054,1729788641039,-303.267956,0.0002038,2]
[340763055,1729788641050,-151.0,0.0002038,2]
[340763057,1729788641062,-151.0,0.0002038,2]
[340763060,1729788641078,-218.068172,0.0002038,2]
[340763062,1729788641089,-151.0,0.0002038,2]
[340763064,1729788641100,-218.068172,0.0002038,2]
[340763066,1729788641112,-151.0,0.0002038,2]
[340763069,1729788641123,-401.262193,0.0002038,2]
[340763071,1729788641135,-151.0,0.0002038,2]
[340763073,1729788641146,-401.262193,0.0002038,2]
[340763075,1729788641156,-151.0,0.0002038,2]
[340763077,1729788641166,-151.0,0.0002038,2]
[340763079,1729788641178,-151.0,0.0002038,2]
[340763082,1729788641189,-433.208296,0.0002038,2]
[340763084,1729788641199,-240.308855,0.0002038,2]
[340763086,1729788641209,-433.208296,0.0002038,2]
[340763088,1729788641219,-240.308855,0.0002038,2]
[340763090,1729788641230,-151.0,0.0002038,2]
[340763092,1729788641241,-151.0,0.0002038,2]
[340763095,1729788641252,-151.0,0.0002038,2]
[340763097,1729788641262,-151.0,0.0002038,2]
[340763099,1729788641273,-151.0,0.0002038,2]
[340763101,1729788641283,-151.0,0.0002038,2]
[340763103,1729788641292,-151.0,0.0002038,2]
[340763105,1729788641303,-151.0,0.0002038,2]
[340763107,1729788641313,-151.0,0.0002038,2]
[340763109,1729788641325,-151.0,0.00020382,2]
[340763112,1729788641335,-151.0,0.00020382,2]
[340763114,1729788641347,-151.0,0.00020382,2]
[340763116,1729788641359,-151.0,0.00020382,2]
[340763118,1729788641369,-151.0,0.00020382,2]
[340763120,1729788641381,-151.0,0.00020382,2]
[340763122,1729788641391,-151.0,0.00020382,2]
[340763124,1729788641400,-151.0,0.00020382,2]
[340763126,1729788641409,-303.267956,0.00020382,2]
[340763128,1729788641419,-303.267956,0.00020382,2]
[340763130,1729788641429,-151.0,0.00020382,2]
[340763132,1729788641439,-151.0,0.00020382,2]
[340763134,1729788641448,-218.068172,0.00020382,2]
[340763136,1729788641458,-218.068172,0.00020382,2]
[340763138,1729788641467,-151.0,0.00020382,2]
[340763140,1729788641478,-401.262193,0.00020382,2]
[340763142,1729788641488,-246.812669,0.00020382,2]
[340763145,1729788641499,-401.262193,0.00020382,2]
[340763147,1729788641509,-151.0,0.00020382,2]
[340763149,1729788641518,-151.0,0.00020382,2]
[340763151,1729788641528,-151.0,0.00020382,2]
[340763153,1729788641538,-433.208296,0.00020382,2]
[340763155,1729788641548,-240.308855,0.00020382,2]
[340763157,1729788641559,-433.208296,0.00020382,2]
[340763159,1729788641570,-240.308855,0.00020382,2]
[340763161,1729788641580,-151.0,0.00020382,2]
[340763163,1729788641589,-151.0,0.00020382,2]
[340763165,1729788641601,-151.0,0.00020382,2]
[340763167,1729788641612,-196.127807,0.00020382,2]
[340763169,1729788641623,-151.0,0.00020382,2]
[340763172,1729788641633,-151.0,0.00020382,2]
[340763174,1729788641644,-151.0,0.00020382,2]
[340763176,1729788641654,-151.0,0.00020382,2]